fUST/lending_fUST_20240111
["ID","MTS","AMOUNT","RATE_DAILY","PERIOD"]
[311126010,1704923441156,-166.666666,0.00022431,2]
[311126011,1704923441165,-166.666666,0.00022944,2]
[311126012,1704923441174,-166.666666,0.00023456,2]
[311126013,1704923441193,-166.666666,0.00023969,2]
[311126014,1704923441202,-166.666666,0.00024482,2]
[311126015,1704923441211,-9872.76,0.00027397,3]
[311126016,1704923441221,-92.90531011,0.00030136,2]
[311126017,1704923441230,-500.0,0.00030136,2]
[311126018,1704923441239,-500.0,0.00030136,2]
[311126019,1704923441248,-500.0,0.00030136,2]
[311126020,1704923441257,-500.0,0.00030136,2]
[311126021,1704923441266,-232.73546203,0.00030136,2]
[311126022,1704923441275,-500.0,0.00030136,2]
[311126023,1704923441284,-543.82779419,0.00030136,2]
[311126024,1704923441293,-500.0,0.00030136,2]
[311126025,1704923441303,-500.0,0.00030136,2]
[311126026,1704923441315,-556.72323517,0.00030136,2]
[311126027,1704923441324,-500.0,0.00030136,2]
[311126028,1704923441336,-2356.43,0.00030136,2]
[311126029,1704923441345,-500.0,0.00030136,2]
[311126030,1704923441354,-500.0,0.00030136,2]
[311126031,1704923441363,-2146.2,0.00030136,2]
[311126032,1704923441372,-500.0,0.00030136,2]
[311126033,1704923441381,-500.0,0.00030136,2]
[311126034,1704923441390,-500.0,0.00030136,2]
[311126035,1704923441399,-1366.35,0.00030136,2]
[311126036,1704923441409,-500.0,0.00030136,2]
[311126037,1704923441419,-605.86,0.00030136,2]
[311126038,1704923441428,-500.0,0.00030136,2]
[311126039,1704923441437,-500.0,0.00030136,2]
[311126040,1704923441447,-500.0,0.00030136,2]
[311126041,1704923441456,-500.0,0.00030136,2]
[311126042,1704923441465,-4958.44,0.00030136,2]
[311126043,1704923441475,-1272.08,0.00030136,2]
[311126044,1704923441484,-500.0,0.00030136,2]
[311126045,1704923441493,-500.0,0.00030136,2]
[311126046,1704923441502,-870.79,0.00030136,2]
[311126047,1704923441511,-500.0,0.00030136,2]
[311126048,1704923441521,-500.0,0.00030136,2]
[311126049,1704923441529,-334.62103633,0.00030136,2]
[311126050,1704923441539,-534.23,0.00030136,2]
[311126051,1704923441548,-500.0,0.00030136,2]
[311126052,1704923441559,-516.9606474,0.00030136,2]
[311126053,1704923441570,-500.0,0.00030136,2]
[311126054,1704923441579,-510.54888702,0.00030136,2]
[311126055,1704923441588,-500.0,0.00030136,2]
[311126056,1704923441598,-500.0,0.00030136,2]
[311126057,1704923441608,-500.0,0.00030136,2]
[311126058,1704923441617,-500.0,0.00030136,2]
[311126059,1704923441626,-500.0,0.00030136,2]
[311126060,1704923441635,-500.0,0.00030136,2]
[311126061,1704923441645,-500.0,0.00030136,2]
[311126062,1704923441654,-500.0,0.00030136,2]
[311126063,1704923441663,-500.0,0.00030136,2]
[311126064,1704923441672,-500.0,0.00030136,2]
[311126065,1704923441681,-493.76665639,0.00030136,2]
[311126066,1704923441690,-500.0,0.00030136,2]
[311126067,1704923441699,-680.95063251,0.000302,3]
[311126068,1704923441708,-3406.52550931,0.000304,2]
[311126069,1704923441717,-500.0,0.0003041,2]
[311126070,1704923441727,-500.0,0.0003041,2]
[311126071,1704923441736,-500.0,0.0003041,2]
[311126072,1704923441745,-1194.5,0.0003041,2]
[311126073,1704923441755,-617.86,0.0003041,2]
[311126074,1704923441764,-500.0,0.0003041,2]
[311126075,1704923441773,-500.0,0.0003041,2]
[311126076,1704923441782,-500.0,0.0003041,2]
[311126077,1704923441791,-500.0,0.0003041,2]
[311126078,1704923441801,-500.0,0.0003041,2]
[311126079,1704923441811,-500.0,0.0003041,2]
[311126080,1704923441820,-500.0,0.0003041,2]
[311126081,1704923441829,-500.0,0.0003041,2]
[311126082,1704923441839,-500.0,0.0003041,2]
[311126083,1704923441848,-500.0,0.0003041,2]
[311126084,1704923441857,-500.0,0.0003041,2]
[311126085,1704923441866,-500.0,0.0003041,2]
[311126086,1704923441875,-500.0,0.0003041,2]
[311126087,1704923441884,-500.0,0.0003041,2]
[311126088,1704923441893,-500.0,0.0003041,2]
[311126089,1704923441903,-500.0,0.0003041,2]
[311126090,1704923441912,-500.0,0.0003041,2]
[311126091,1704923441921,-500.0,0.0003041,2]
[311126092,1704923441930,-500.0,0.0003041,2]
[311126093,1704923441940,-500.0,0.0003041,2]
[311126094,1704923441949,-500.0,0.0003041,2]
[311126095,1704923441958,-500.0,0.0003041,2]
[311126096,1704923441967,-7256.79,0.0003041,2]
[311126097,1704923441976,-500.0,0.0003041,2]
[311126098,1704923441986,-500.0,0.0003041,2]
[311126099,1704923442075,-500.0,0.0003041,2]
[311126100,1704923442097,-1205.0,0.0003041,2]
[311126101,1704923442106,-500.0,0.0003041,2]
[311126102,1704923442115,-500.0,0.0003041,2]
[311126103,1704923442124,-1596.42,0.0003041,2]
[311126104,1704923442133,-716.33,0.0003041,2]
[311126105,1704923442142,-529.45803971,0.0003041,2]
[311126106,1704923442151,-500.0,0.0003041,2]
[311126107,1704923442160,-193.37388031,0.0003041,2]
[311126108,1704923442227,-306.62611969,0.0003041,2]
[311126109,1704923442237,-447.31779706,0.0003041,2]
[311126110,1704923442248,-52.68220294,0.0003041,2]
[311126111,1704923442257,-500.0,0.0003041,2]
[311126112,1704923442266,-500.0,0.0003041,2]
[311126113,1704923442276,-2356.43,0.0003041,2]
[311126114,1704923442286,-500.0,0.0003041,2]
[311126115,1704923442295,-500.0,0.0003041,2]
[311126116,1704923442308,-2146.2,0.0003041,2]
[311126117,1704923442318,-300.84371111,0.0003041,2]
[311126336,1704924453128,235.802055,0.00015321,2]
[311126337,1704924513145,24900.0,0.00015522,2]
[311126415,1704924633652,-2927.32783457,0.00016173,2]
[311126416,1704924633663,-1067.08288417,0.00016174,2]
[311126417,1704924633674,-154.95351395,0.00016174,3]
[311126418,1704924633683,-154.95351395,0.00016174,2]
[311126419,1704924633693,-554.1621614,0.00016174,2]
[311126420,1704924633707,-451.74832768,0.00016175,2]
[311126421,1704924633717,-1989.51321951,0.00016176,2]
[311126422,1704924633728,-158.11687985,0.00016183,2]
[311126423,1704924633738,-158.11687985,0.00016941,2]
[311126424,1704924633748,-14490.56531428,0.00017233,2]
[311126425,1704924633758,-872.56977946,0.00017235,2]
[311126426,1704924633769,-158.11687985,0.00017699,2]
[311126427,1704924633779,-850.75857141,0.00017797,2]
[311126428,1704924633789,-5048.78531228,0.00017797,2]
[311126429,1704924633799,-5695.24956525,0.00017798,2]
[311126430,1704924633811,-708.29775169,0.00017798,2]
[311126431,1704924633822,-310.12764051,0.00017799,2]
[311126432,1704924633831,-1575.9466697,0.00017799,2]
[311126433,1704924633841,-539.21522124,0.00017799,2]
[311126434,1704924633850,-246.05359663,0.000178,2]
[311126435,1704924633859,-10500.0358078,0.00018999,2]
[311126436,1704924633869,-1578.65511595,0.00019,2]
[311126437,1704924633879,-1112.08388858,0.000195,2]
[311126438,1704924633890,-198.08093084,0.000199,2]
[311126439,1704924633899,-8802.36,0.0001999,3]
[311126440,1704924633909,-170.38270553,0.00019998,2]
[311126441,1704924633919,-174.82421155,0.00019998,2]
[311126442,1704924633928,-164.76169336,0.00019998,2]
[311126443,1704924633937,-213.97462464,0.00019998,2]
[311126444,1704924633948,-166.57052583,0.00019999,2]
[311126445,1704924633957,-300.0,0.0002,2]
[311126446,1704924633967,-200.0,0.0002,2]
[311126447,1704924633977,-2130.16604575,0.0002,5]
[311126448,1704924633986,-2408.56694827,0.0002,2]
[311126492,1704924638339,-593.97997491,0.00016172,2]
[311126494,1704924638348,-154.95351395,0.00016172,2]
[311126496,1704924638358,-368.04890219,0.0001999,3]
[311126512,1704924638497,-6967.25109781,0.0001999,3]
[311126514,1704924638507,-1288.80565454,0.0002,2]
[311126516,1704924638519,-267036.92860582,0.0002,2]
[311126518,1704924638528,-676.96253794,0.0002,2]
[311126520,1704924638537,-1195.09669838,0.0002,2]
[311126522,1704924638547,-154.9690062,0.0002,2]
[311126524,1704924638556,-236.79527182,0.0002,2]
[311126526,1704924638566,-266.19065175,0.0002,2]
[311126528,1704924638576,-853.57612089,0.0002,2]
[311126530,1704924638585,-232.52223397,0.00021,2]
[311126532,1704924638595,-21891.54775598,0.00021,2]
[311126534,1704924638603,-15646.15896093,0.00021,2]
[311126536,1704924638614,-1545.49856196,0.00021,2]
[311126538,1704924638623,-193.95210286,0.00021,2]
[311126540,1704924638633,-326.73090334,0.00021,2]
[311126542,1704924638642,-166.666666,0.00021918,2]
[311126544,1704924638651,-292.83058016,0.00022,4]
[311126547,1704924638660,-156.86767994,0.00022,2]
[311126549,1704924638669,-198.0809308,0.000224,2]
[311126550,1704924638678,-166.666666,0.00022431,2]
[311126552,1704924638687,-154.9690062,0.000225,2]
[311126554,1704924638696,-166.666666,0.00022944,2]
[311126555,1704924638712,-235.802055,0.00022982,2]
[311126557,1704924638722,-9920.80434626,0.00023,2]
[311126559,1704924638731,-2093.08732709,0.00023,2]
[311126561,1704924638743,-166.666666,0.00023456,2]
[311126563,1704924638752,-166.666666,0.00023969,2]
[311126564,1704924638761,-9220.09111215,0.00023998,2]
[311126566,1704924638770,-166.666666,0.00024482,2]
[311126567,1704924638780,-198.0809308,0.000249,2]
[311126568,1704924638789,-4711.08145103,0.00025,2]
[311126569,1704924638798,-155.45330609,0.00025,2]
[311126570,1704924638809,-677.45880314,0.00025,2]
[311126571,1704924638820,-7193.15698043,0.00025297,2]
[311126572,1704924638829,-240.6863978,0.00026,2]
[311126573,1704924638838,-525.91402641,0.00026,2]
[311126574,1704924638848,-3612.07378676,0.00026,2]
[311126575,1704924638856,-733.25771754,0.00027,2]
[311126576,1704924638866,-2293.16748545,0.0002736,2]
[311126577,1704924638875,-198.0809308,0.000274,2]
[311126578,1704924638885,-13309.79298287,0.000275,2]
[311126579,1704924638894,-687.59711705,0.000277,2]
[311126580,1704924638904,-3547.32068277,0.00028036,2]
[311126581,1704924638913,-4580.82702832,0.00028663,3]
[311126582,1704924638922,-5020.32159306,0.0002868,3]
[311126583,1704924638931,-989.11717209,0.00028697,2]
[311126584,1704924638941,-9098.22062588,0.0002889,4]
[311126585,1704924638950,-1982.97164167,0.00029,2]
[311126586,1704924638960,-263.40986316,0.00029,2]
[311126587,1704924638969,-155.0,0.00029409,2]
[311126588,1704924638978,-273.12,0.00029789,2]
[311126589,1704924638988,-203917.24616503,0.0002979,7]
[311126590,1704924639000,-2872.61301257,0.0002979,7]
[311126591,1704924639009,-198.0809308,0.000299,2]
[311126592,1704924639019,-397.37492778,0.00029999,2]
[311126593,1704924639028,-500.0,0.00029999,2]
[311126594,1704924639037,-211.72372531,0.00029999,2]
[311126595,1704924639046,-457.82026353,0.00029999,2]
[311126596,1704924639056,-485.18610105,0.00029999,2]
[311126597,1704924639065,-500.0,0.00029999,2]
[311126598,1704924639075,-500.0,0.00029999,2]
[311126599,1704924639084,-500.0,0.00029999,2]
[311126600,1704924639094,-500.0,0.00029999,2]
[311126601,1704924639104,-500.0,0.00029999,2]
[311126602,1704924639113,-500.0,0.00029999,2]
[311126603,1704924639123,-531.4981514,0.00029999,2]
[311126604,1704924639133,-499.99999999,0.00029999,2]
[311126605,1704924639143,-448.68746388,0.00029999,2]
[311126606,1704924639155,-411.6426972,0.0003,4]
[311126607,1704924639165,-165.56576911,0.0003,7]
[311126608,1704924639176,-22.65648026,0.0003,2]
[311126609,1704924639189,-737.97534813,0.0003,2]
[311126610,1704924639204,-6182.50964937,0.0003,2]
[311126611,1704924639219,-686.6335406,0.0003,4]
[311126612,1704924639229,-2188.52939093,0.0003,2]
[311126613,1704924639238,-78498.2169838,0.0003,2]
[311126648,1704924641155,-7679.53228833,0.0003,2]
[311126650,1704924641167,-6658.99859822,0.0003,2]
[311126655,1704924641226,-146426.82145476,0.0003,2]
[311126705,1704924643240,-14425.83409147,0.0003,2]
[311126708,1704924643252,-17968.54999119,0.0003,2]
[311126713,1704924643296,-1474.30813997,0.0003,2]
[311126716,1704924643307,-396.97000031,0.0003,2]
[311127051,1704924646390,-246.05359663,0.00029999,2]
[311127054,1704924646399,-296.16942876,0.00029999,2]
[311127497,1704924735100,150.95471359,0.00027771,30]
[311127498,1704924735157,150.95471359,0.00027215,120]
[311127511,1704925047426,150.96980604,0.00027247,30]
[311127512,1704925047494,150.96980604,0.00026702,120]
[311127515,1704925190695,113649.35145114,0.00026702,7]
[311127516,1704925195039,230.5019379,0.00015236,2]
[311127517,1704925201898,586.2880416,0.00012697,2]
[311127519,1704925233820,8274.4923294,0.00015311,2]
[311127520,1704925247180,10772.9156361,0.0001531,2]
[311127521,1704925347982,24900.0,0.00013097,2]
[311127522,1704925351665,19828.39990193,0.00013096,2]
[311127523,1704925354260,554.1621614,0.00013096,2]
[311127524,1704925355120,3478.12894861,0.00013096,2]
[311127525,1704925379276,154.98450155,0.00013096,2]
[311127526,1704925382413,629.0735585,0.00012842,2]
[311127527,1704925383562,298.15345662,0.00013096,2]
[311127528,1704925384449,342.40737445,0.00013096,2]
[311127529,1704925385246,619.44144137,0.00013096,2]
[311127530,1704925385981,1158.6742262,0.00012943,2]
[311127531,1704925386524,1273.55158383,0.00013096,2]
[311127532,1704925386600,1523.77843903,0.00013096,2]
[311127533,1704925387493,534.09975459,0.00013096,2]
[311127534,1704925390401,1207.95845455,0.00012703,2]
[311127535,1704925390431,7536.02362335,0.00012703,2]
[311127536,1704925395547,176.14561364,0.00013096,2]
[311127537,1704925399137,619.44144137,0.00013096,2]
[311127538,1704925401295,191.87197969,0.00013096,2]
[311127539,1704925401497,560.09911627,0.00013096,2]
[311127540,1704925402467,369.15664816,0.00013096,2]
[311127541,1704925404520,1273.55158383,0.00013096,2]
[311127542,1704925406613,889.73255417,0.00013096,2]
[311127543,1704925408400,5509.69556923,0.00012703,2]
[311127544,1704925417134,468.42260579,0.00013096,2]
[311127545,1704925420536,607.32885015,0.00013096,2]
[311127546,1704925485375,396.85458,0.00012555,2]
[311127552,1704925554314,150.93962415,0.00026448,30]
[311127553,1704925554381,150.93962415,0.00025919,120]
[311127556,1704925617481,1527.1203017,0.00012534,2]
[311127562,1704925662992,49874.55553265,0.00012481,2]
[311127563,1704925663029,4611.60767315,0.00012481,2]
[311127564,1704925738509,5050.4579653,0.0001254,2]
[311127576,1704925762839,24900.0,0.00012423,2]
[311127577,1704925764338,378.6147912,0.00012423,2]
[311127578,1704925775706,150.93962415,0.00026559,30]
[311127579,1704925775770,150.93962415,0.00026028,120]
[311127604,1704925791201,619.44144137,0.0001254,2]
[311127605,1704925798289,155.29508163,0.0001254,2]
[311127606,1704925820341,10280.02525619,0.0001254,2]
[311127717,1704925834949,-1250.66144998,0.00013407,2]
[311127718,1704925834958,-154.93802479,0.00013407,2]
[311127719,1704925834967,-178.44106149,0.00013407,2]
[311127720,1704925834977,-312.98141829,0.00013407,2]
[311127721,1704925834987,-198.82408315,0.00013407,2]
[311127722,1704925834996,-451.74832768,0.00013407,2]
[311127723,1704925835006,-322.83363774,0.00013408,2]
[311127724,1704925835015,-174.8658683,0.00013408,2]
[311127725,1704925835025,-164.91655517,0.00013408,2]
[311127726,1704925835035,-294.43000119,0.00013409,2]
[311127727,1704925835045,-154.93802479,0.00013409,2]
[311127728,1704925835054,-154.93802479,0.00013409,2]
[311127729,1704925835064,-6745.59582914,0.00013409,2]
[311127730,1704925835076,-9014.32691604,0.00013409,2]
[311127731,1704925835121,2031.05125647,0.0001254,2]
[311127734,1704925837776,1067.08288417,0.00012539,2]
[311127735,1704925838111,155.07725077,0.0001254,2]
[311127754,1704925839392,164.24940589,0.00012539,2]
[311127796,1704925840575,-253.55669293,0.00013406,2]
[311127798,1704925840585,-162.75529733,0.00013406,2]
[311127800,1704925840594,-218.83127102,0.00013406,2]
[311127803,1704925840612,-141.90502218,0.00013406,2]
[311127805,1704925840621,-1575.9466697,0.00013406,2]
[311127807,1704925840631,-36890.05042447,0.00013407,2]
[311127809,1704925840640,-15880.72613326,0.00013408,2]
[311127811,1704925840649,-20832.93466306,0.00013408,2]
[311127813,1704925840658,-8052.39762591,0.00013409,2]
[311127815,1704925840667,-154.93802479,0.0001341,2]
[311127817,1704925840676,-154.93802479,0.0001341,2]
[311127819,1704925840687,-1030.59482552,0.0001341,2]
[311127821,1704925840696,-20861.46383375,0.0001341,2]
[311127824,1704925840714,-5953.08134693,0.0001341,2]
[311127826,1704925840728,-154.93802479,0.00013411,2]
[311127828,1704925840738,-560.45578552,0.00013411,2]
[311127830,1704925840748,-154.93802479,0.00013411,2]
[311127832,1704925840758,-166.61009921,0.00013411,2]
[311127834,1704925840768,-242.59429943,0.00013411,2]
[311127836,1704925840778,-264.87381963,0.00013411,2]
[311127839,1704925840788,-2034.80072126,0.00013411,2]
[311127841,1704925840798,-3737.95560178,0.00013411,2]
[311127843,1704925840807,-2708.4877235,0.00013411,2]
[311127845,1704925840817,-19660.26640891,0.00013411,2]
[311127847,1704925840827,-154.93802479,0.00013412,2]
[311127849,1704925840836,-154.93802479,0.00013412,2]
[311127851,1704925840846,-212.96062918,0.00013412,2]
[311127853,1704925840856,-178.51706094,0.00013412,2]
[311127855,1704925840866,-2873.08771636,0.00013412,2]
[311127857,1704925840876,-1737.24988191,0.00013412,2]
[311127859,1704925840885,-285.7548216,0.00013413,2]
[311127861,1704925840895,-5000.0,0.00013413,2]
[311127863,1704925840905,-4807.78472407,0.00013413,2]
[311127865,1704925840915,-2927.32783457,0.00013413,2]
[311127868,1704925840924,-154.93802479,0.00013413,2]
[311127870,1704925840935,-154.93802479,0.00013413,2]
[311127872,1704925840945,-154.93802479,0.00013413,2]
[311127874,1704925840955,-154.93802479,0.00013413,2]
[311127876,1704925840965,-260.59423718,0.00013413,2]
[311127878,1704925840975,-154.93802479,0.00013413,2]
[311127880,1704925840984,-4605.6407387,0.00013413,2]
[311127882,1704925840994,-642.93704766,0.00013414,2]
[311127884,1704925841004,-400.02724112,0.00013414,2]
[311127886,1704925841013,-154.93802479,0.00013414,2]
[311127888,1704925841023,-287.51467122,0.00013414,2]
[311127890,1704925841033,-1239.896093,0.00013414,2]
[311127892,1704925841043,-154.93802479,0.00013414,2]
[311127894,1704925841053,-3478.12894861,0.00013414,2]
[311127896,1704925841063,-13692.10606787,0.00013414,2]
[311127898,1704925841073,-154.93802479,0.00013415,2]
[311127900,1704925841083,-1989.51321951,0.00013415,2]
[311127902,1704925841092,-230.48582873,0.00013415,2]
[311127904,1704925841102,-154.93802479,0.00013415,2]
[311127906,1704925841113,-260.30288884,0.00013415,2]
[311127908,1704925841123,-194.40470366,0.00013425,2]
[311127910,1704925841132,-521.10576847,0.00013425,2]
[311127912,1704925841142,-521.10576847,0.00013425,2]
[311127914,1704925841151,-521.10576847,0.00013425,2]
[311127916,1704925841161,-521.10576847,0.00013425,2]
[311127918,1704925841171,-964.55150019,0.00013427,2]
[311127920,1704925841181,-469.64064105,0.00013432,2]
[311127922,1704925841194,-187.67060334,0.00013437,2]
[311127923,1704925841203,-301.2405075,0.00013541,2]
[311127925,1704925841213,-5000.0,0.00013699,2]
[311127927,1704925841223,-6724.88216746,0.00013844,2]
[311127928,1704925841232,-553.60634296,0.00013844,2]
[311127930,1704925841242,-250.0,0.00013848,2]
[311127932,1704925841252,-1482.555944,0.00013849,2]
[311127933,1704925841262,-217.801297,0.00014181,2]
[311127935,1704925841272,-686.53707421,0.00015,2]
[311127937,1704925841282,-154.98450155,0.00015,2]
[311127939,1704925841292,-546.7810851,0.0001531,2]
[311127941,1704925841303,-1284.1125856,0.00015342,2]
[311127943,1704925841312,-201704.46233437,0.00016,2]
[311127945,1704925841323,-271.96235488,0.000165,2]
[311127947,1704925841336,-155.26890222,0.00016845,2]
[311127949,1704925841347,-309.85996882,0.00016924,2]
[311127951,1704925841357,-3346.08358131,0.00016924,2]
[311127952,1704925841367,-1692.86752358,0.00016924,2]
[311127954,1704925841377,-155.07737894,0.00016925,2]
[311127956,1704925841386,-155.88503121,0.00016925,2]
[311127958,1704925841396,-170.42946526,0.00016929,2]
[311127960,1704925841407,-309.81411154,0.00016929,2]
[311127962,1704925841417,-860.62181226,0.00016929,2]
[311127964,1704925841427,-166.39900845,0.00016929,2]
[311127966,1704925841437,-309.78315799,0.00016929,2]
[311127968,1704925841447,-309.81411154,0.00016929,2]
[311127970,1704925841458,-2495.38775428,0.00016945,2]
[311127972,1704925841467,-872.56977946,0.00017235,2]
[311127974,1704925841477,-246.05359663,0.000178,2]
[311127976,1704925841487,-10500.0358078,0.00017898,2]
[311127977,1704925841496,-1290.72817531,0.00017952,2]
[311127978,1704925841505,-283.95469514,0.00017952,2]
[311127979,1704925841514,-155.01312017,0.00017952,2]
[311127980,1704925841523,-975.04064545,0.00017996,2]
[311127981,1704925841532,-1578.65511595,0.00019,2]
[311127982,1704925841541,-161.431354,0.00019178,2]
[311127983,1704925841551,-174.331822,0.00019178,2]
[311127984,1704925841560,-1112.08388858,0.000195,2]
[311127985,1704925841569,-586.93974545,0.00019796,2]
[311127986,1704925841579,-155.10428577,0.00019998,2]
[311127987,1704925841588,-4784.50329475,0.00019998,2]
[311127988,1704925841597,-7985.3418189,0.00019998,2]
[311127989,1704925841606,-155.2837213,0.00019998,2]
[311127990,1704925841615,-155.01016352,0.00019998,2]
[311127991,1704925841624,-643.96174562,0.00019998,2]
[311127992,1704925841634,-946.99985386,0.00019998,2]
[311127993,1704925841643,-652.90378026,0.00019998,2]
[311127994,1704925841652,-250.47516659,0.00019998,2]
[311127995,1704925841661,-155.04777018,0.00019999,2]
[311127996,1704925841671,-1195.09669838,0.0002,2]
[311127998,1704925841680,-270734.30120863,0.0002,2]
[311128000,1704925841691,-309.65927259,0.0002,2]
[311128001,1704925841701,-853.57612089,0.0002,2]
[311128003,1704925841711,-676.96253794,0.0002,2]
[311128005,1704925841720,-236.79527182,0.0002,2]
[311128007,1704925841730,-266.19065175,0.0002,2]
[311128009,1704925841739,-155.09294423,0.0002,2]
[311128010,1704925841749,-300.0,0.0002,2]
[311128012,1704925841758,-200.0,0.0002,2]
[311128014,1704925841768,-1482.555944,0.00020774,2]
[311128016,1704925841779,-326.73090334,0.00021,2]
[311128018,1704925841789,-166.666666,0.00021918,2]
[311128020,1704925841799,-156.86767994,0.00022,2]
[311128022,1704925841809,-292.83058016,0.00022,4]
[311128023,1704925841819,-309.81434045,0.00022,2]
[311128025,1704925841828,-166.666666,0.00022431,2]
[311128026,1704925841838,-154.95351395,0.000225,2]
[311128028,1704925841851,-166.666666,0.00022944,2]
[311128029,1704925841862,-9920.80434626,0.00023,2]
[311128030,1704925841872,-2093.08732709,0.00023,2]
[311128031,1704925841882,-166.666666,0.00023456,2]
[311128032,1704925841892,-166.666666,0.00023969,2]
[311128033,1704925841901,-166.666666,0.00024482,2]
[311128035,1704925841911,-309.81411154,0.00024494,2]
[311128037,1704925841921,-4711.08145103,0.00025,2]
[311128039,1704925841931,-677.45880314,0.00025,2]
[311128041,1704925841942,-206.29041188,0.00025016,2]
[311128043,1704925841951,-763.40324942,0.00025919,2]
[311128045,1704925841961,-1821.85168105,0.00025919,2]
[311128047,1704925841970,-525.91402641,0.00026,2]
[311128048,1704925841980,-2079.63666476,0.00026702,2]
[311128050,1704925841989,-155.29095944,0.00026702,2]
[311128052,1704925841999,-9133.70203484,0.00026702,2]
[311128054,1704925842008,-154.9690062,0.00026702,7]
[311128056,1704925842018,-622.88846104,0.00026717,2]
[311128058,1704925842028,-733.25771754,0.00027,2]
[311128060,1704925842038,-150.93962415,0.00027101,7]
[311128062,1704925842048,-3313.2630203,0.00027215,2]
[311128064,1704925842058,-12500.28,0.00027397,3]
[311128066,1704925842067,-150.93962415,0.00027655,4]
[311128067,1704925842077,-687.59711705,0.000277,2]
[311128069,1704925842086,-2364.88045518,0.000279,2]
[311128071,1704925842096,-620.14442305,0.00028053,2]
[311128072,1704925842106,-150.93962415,0.00028219,2]
[311128073,1704925842116,-151.0,0.00028428,2]
[311128074,1704925842126,-9098.22062588,0.00028499,4]
[311128075,1704925842137,-5000.0,0.00028697,5]
[311128076,1704925842146,-43911.66440996,0.00028697,4]
[311128077,1704925842156,-254.05524745,0.00028701,3]
[311128078,1704925842166,-9793.64617029,0.00028724,3]
[311128079,1704925842176,-5000.0,0.00028724,5]
[311128080,1704925842186,-5000.0,0.00028743,5]
[311128081,1704925842196,-1982.97164167,0.00029,2]
[311128082,1704925842205,-522.44018289,0.00029,2]
[311128083,1704925842216,-480.92,0.00029,2]
[311128084,1704925842225,-591.87,0.00029,2]
[311128085,1704925842235,-155.0,0.00029137,2]
[311128086,1704925842245,-620.00206977,0.0002937,2]
[311128087,1704925842256,-620.00722115,0.00029456,2]
[311128088,1704925842266,-151.0,0.00029461,2]
[311128089,1704925842276,-546.34729889,0.00029998,2]
[311128090,1704925842286,-501.0,0.00029999,2]
[311128091,1704925842296,-305.01426273,0.00029999,2]
[311128092,1704925842307,-273.12,0.00029999,2]
[311128093,1704925842316,-22199.31688565,0.0003,3]
[311128094,1704925842326,-967.22330548,0.0003,10]
[311128095,1704925842341,-10202.84952288,0.0003,10]
[311128096,1704925842354,-23833.7521846,0.0003,10]
[311128097,1704925842364,-1475.70472705,0.0003,2]
[311128098,1704925842374,-18548.99519009,0.0003,2]
[311128099,1704925842385,-698.81535711,0.0003,2]
[311128100,1704925842395,-6973.85683356,0.0003,4]
[311128101,1704925842404,-279.76130408,0.0003,4]
[311128102,1704925842414,-10528.01709463,0.0003,4]
[311128103,1704925842424,-165.56576911,0.0003,7]
[311128104,1704925842435,-1600.0,0.0003,2]
[311128105,1704925842444,-2000.0,0.0003,2]
[311128106,1704925842453,-686.6335406,0.0003,4]
[311128107,1704925842462,-463.38099934,0.0003,4]
[311128108,1704925842472,-339.85578053,0.0003,4]
[311128109,1704925842481,-4999.99,0.0003,2]
[311128110,1704925842491,-5000.0,0.0003,2]
[311128111,1704925842501,-5000.02,0.0003,2]
[311128112,1704925842511,-1101.39,0.0003,2]
[311128113,1704925842521,-282.5931468,0.0003,3]
[311128114,1704925842644,-5000.01,0.0003,2]
[311128115,1704925842655,-4377.2,0.0003,2]
[311128116,1704925842665,-309.78315489,0.0003,2]
[311128117,1704925842674,-4999.98,0.0003,2]
[311128118,1704925842686,-170.0,0.0003,2]
[311128119,1704925842695,-3211.468316,0.0003001,2]